fUSD/lending_fUSD_20250329
["ID","MTS","AMOUNT","RATE_DAILY","PERIOD"]
[356830617,1743285042358,-1274.0,0.00017984,2]
[356830618,1743285042368,-788.0,0.00017984,2]
[356830619,1743285042377,-4090.0,0.00017984,2]
[356830620,1743285042387,-908.0,0.00017984,2]
[356830621,1743285042396,-1432.0,0.00017984,2]
[356830622,1743285042406,-543.0,0.00017984,2]
[356830623,1743285042416,-3946.0,0.00017984,2]
[356830624,1743285042425,-151.0,0.00017984,2]
[356830625,1743285042435,-1117.0,0.00017984,2]
[356830626,1743285042444,-243.095372,0.00017984,2]
[356830627,1743285042453,-1046.1,0.00018533,2]
[356830628,1743285042462,-169.97,0.000186,2]
[356830629,1743285042472,-289.94,0.00018646,2]
[356830630,1743285042481,-268.17110487,0.00019,2]
[356830631,1743285042490,-77333.12687699,0.00019,2]
[356830632,1743285042499,-436.68918563,0.00019,2]
[356830633,1743285042508,-1000.0,0.00019452,2]
[356830634,1743285042518,-877.61,0.00019634,2]
[356830635,1743285042527,-154.12280526,0.000199,3]
[356830636,1743285042536,-8005.3689029,0.00019986,2]
[356830637,1743285042547,-66932.26161401,0.0002,4]
[356830646,1743285043020,-151.0,0.00015,2]
[356830647,1743285043033,-151.0,0.00015,2]
[356830648,1743285043045,-151.0,0.00015,2]
[356830649,1743285043054,-114.80152106,0.00015,2]
[356830650,1743285043068,-36.19847894,0.00015,2]
[356830651,1743285043078,-151.0,0.00015213,2]
[356830652,1743285043088,-151.0,0.000154,2]
[356830653,1743285043098,-150.0,0.000154,2]
[356830654,1743285043108,-151.0,0.00016123,2]
[356830655,1743285043118,-33892.94030719,0.0002,4]
[356830683,1743286023850,172.90761,0.00019986,23]
[356830694,1743286232180,-241.75405152,0.00015382,2]
[356830695,1743286232191,-150.0,0.00015481,2]
[356830696,1743286232201,-27.62622734,0.00015481,2]
[356830697,1743286232213,-272.37377266,0.00015481,2]
[356830698,1743286232222,-205.9421112,0.00015482,2]
[356830699,1743286232235,-299.99,0.00015482,2]
[356830700,1743286232247,-776.0678888,0.00015482,2]
[356830701,1743286232256,-2039.0,0.00015482,2]
[356830702,1743286232266,-761.499,0.00015482,2]
[356830703,1743286232276,-573.0,0.00015482,2]
[356830704,1743286232285,-1422.0,0.00015482,2]
[356830705,1743286232295,-1056.335,0.00015482,2]
[356830706,1743286232304,-788.0,0.00015482,2]
[356830707,1743286232314,-543.0,0.00015482,2]
[356830708,1743286232324,-908.0,0.00015482,2]
[356830709,1743286232336,-1432.0,0.00015482,2]
[356830710,1743286232345,-4090.0,0.00015482,2]
[356830711,1743286232354,-3946.0,0.00015482,2]
[356830712,1743286232364,-151.0,0.00015482,2]
[356830713,1743286232375,-554.469,0.00015482,2]
[356830714,1743286232384,-150.0,0.000166,2]
[356830715,1743286232393,-201.2245757,0.00016935,2]
[356830716,1743286232406,-85.7754243,0.00016935,2]
[356830717,1743286232416,-241.75405151,0.00017638,2]
[356830718,1743286232425,-1282.0,0.00018482,2]
[356830719,1743286232435,-738.80042619,0.00018482,2]
[356830720,1743286232446,-422.33372091,0.00018482,2]
[356830850,1743286238136,-547.34602063,0.00018482,2]
[356830851,1743286238248,-298.0,0.00018482,2]
[356830852,1743286238307,-32.51983227,0.00018482,2]
[356830853,1743286238317,-643.0,0.00018482,2]
[356830854,1743286238330,-569.0,0.00018482,2]
[356830855,1743286238339,-1422.0,0.00018482,2]
[356830856,1743286238349,-495.912,0.00018482,2]
[356830857,1743286238358,-543.0,0.00018482,2]
[356830858,1743286238368,-908.0,0.00018482,2]
[356830859,1743286238379,-1432.0,0.00018482,2]
[356830860,1743286238387,-411.6057372,0.00018482,2]
[356830888,1743286240358,-663.7428147,0.00018482,2]
[356830893,1743286244832,-3014.6514481,0.00018482,2]
[356830894,1743286244842,-18.3259638,0.00018482,2]
[356830895,1743286246170,-265.71195595,0.0001583,2]
[356830896,1743286246233,-851.28804405,0.0001583,2]
[356830897,1743286246244,-3927.6740362,0.00018482,2]
[356830898,1743286246254,-151.0,0.00018482,2]
[356830899,1743286246264,-169.18,0.000186,2]
[356830900,1743286246274,-443.95,0.000186,2]
[356830901,1743286246283,-150.0,0.000186,2]
[356830902,1743286246293,-443.36,0.000186,2]
[356830903,1743286246303,-500.0,0.0001863,2]
[356830904,1743286246312,-241.75405151,0.00019894,2]
[356830905,1743286246321,-1184.89,0.00019994,2]
[356830906,1743286246334,-12923.2550839,0.00019994,2]
[356830907,1743286246343,-5127.10105916,0.0002,4]
[356830908,1743286246353,-1931.61765201,0.0002,4]
[356830909,1743286246363,-5378.2519937,0.00020008,2]
[356830910,1743286246373,-331.115,0.00020022,2]
[356830911,1743286246383,-2000.0,0.00020915,2]
[356830912,1743286246392,-500.0,0.00020932,2]
[356830913,1743286246402,-200.0,0.00021,2]
[356830914,1743286246412,-160.35,0.0002122,2]
[356830915,1743286246421,-500.0,0.0002122,13]
[356830916,1743286246431,-252.0,0.0002122,13]
[356830917,1743286246441,-500.0,0.00021267,2]
[356830918,1743286246450,-1017.71,0.00021412,5]
[356830919,1743286246460,-609.67456507,0.00021482,2]
[356830942,1743287361571,-492.4067,0.000149,2]
[356830943,1743287361594,-500.0,0.00014999,2]
[356830944,1743287361615,-500.0,0.00014999,2]
[356830945,1743287361637,-500.0,0.00014999,2]
[356830946,1743287361659,-500.0,0.00014999,2]
[356830947,1743287361682,-187.0,0.00014999,2]
[356830948,1743287361706,-97320.5933,0.00015,2]
[356830949,1743287362475,-100000.0,0.00015,2]
[356830950,1743287364702,-100000.0,0.00015,2]
[356830951,1743287365399,-100000.0,0.00015,2]
[356830952,1743287365973,-100000.0,0.00015,2]
[356830953,1743287366651,-100000.0,0.00015,2]
[356830960,1743287380047,-93100.0,0.00015,2]
[356830973,1743287432376,-1884.4239171,0.00015,2]
[356830974,1743287432393,-738.44822419,0.00015,2]
[356830975,1743287432405,-455.85,0.00015,2]
[356830976,1743287432417,-929.09289014,0.00015,2]
[356830977,1743287432429,-622.91559,0.00015,2]
[356830978,1743287432477,-2390.37141977,0.00015,2]
[356830979,1743287432637,-1863.88495208,0.00015,2]
[356830980,1743287432649,-2495.88622151,0.00015,2]
[356830981,1743287432662,-664.24310131,0.00015,2]
[356830982,1743287432673,-401.7502562,0.00015,2]
[356831035,1743287438375,-77.47607772,0.000149,2]
[356831036,1743287438388,-3856.67487839,0.000149,2]
[356831037,1743287438403,-600.36963334,0.000149,2]
[356831038,1743287438413,-3799.68036666,0.00015,2]
[356831039,1743287438440,-789.611823,0.00015,2]
[356831040,1743287440544,-395.1295473,0.00015,2]
[356831042,1743287443447,-2346.37994327,0.00015,2]
[356831046,1743287444917,-646.99675889,0.00015,2]
[356831048,1743287446442,-270.0,0.00014999,2]
[356831049,1743287446452,-40003.17435431,0.00015,2]
[356831050,1743287446464,-280.45,0.00015,2]
[356831063,1743287518268,-91800.0,0.00015,2]
[356831064,1743287547141,-91800.0,0.00015,2]
[356831066,1743287822531,-219.1188399,0.000149,2]
[356831067,1743287822554,-539.80639723,0.00014973,2]
[356831068,1743287822577,-274.0,0.00014999,2]
[356831069,1743287822602,-98967.07476287,0.00015,2]
[356831070,1743287824746,-100000.0,0.00015,2]
[356831071,1743287825752,-100000.0,0.00015,2]
[356831072,1743287836343,-67000.0,0.00015,2]
[356831075,1743287910425,264.892,0.000147,2]
[356831076,1743288009891,-4095.21804501,0.000149,2]
[356831077,1743288009918,-365.67065678,0.0001499,2]
[356831078,1743288009944,-95539.11129821,0.00015,2]
[356831079,1743288016832,-379.73223365,0.0001489,2]
[356831080,1743288016858,-99620.26776635,0.00015,2]
[356831081,1743288017652,-100000.0,0.00015,2]
[356831082,1743288018268,-100000.0,0.00015,2]
[356831083,1743288018876,-100000.0,0.00015,2]
[356831084,1743288019552,-100000.0,0.00015,2]
[356831085,1743288023816,-100000.0,0.00015,2]
[356831086,1743288033192,-25600.0,0.00015,2]
[356831087,1743288077926,-2045.65878211,0.0001485,2]
[356831088,1743288077951,-243.0,0.00014999,2]
[356831089,1743288077974,-478.72480518,0.00014999,2]
[356831090,1743288077998,-47232.61641271,0.00015,2]
[356831091,1743288078648,-50000.0,0.00015,2]
[356831092,1743288079335,-50000.0,0.00015,2]
[356831093,1743288079941,-50000.0,0.00015,2]
[356831094,1743288080437,-50000.0,0.00015,2]
[356831095,1743288081146,-50000.0,0.00015,2]
[356831096,1743288091645,-10700.0,0.00015,2]
[356831098,1743288152994,-250.00000001,0.000149,2]
[356831099,1743288153016,-5532.1253,0.000149,2]
[356831100,1743288153040,-150.0,0.00014999,2]
[356831101,1743288153066,-94067.87469999,0.00015,2]
[356831102,1743288153875,-100000.0,0.00015,2]
[356831103,1743288154549,-100000.0,0.00015,2]
[356831104,1743288155142,-100000.0,0.00015,2]
[356831105,1743288155663,-100000.0,0.00015,2]
[356831106,1743288156580,-100000.0,0.00015,2]
[356831107,1743288157476,-100000.0,0.00015,2]
[356831108,1743288172217,-20400.0,0.00015,2]
[356831110,1743288215196,-219.1188399,0.000149,2]
[356831111,1743288215225,-99780.8811601,0.00015,2]
[356831112,1743288215881,-100000.0,0.00015,2]
[356831113,1743288216471,-100000.0,0.00015,2]
[356831114,1743288217111,-100000.0,0.00015,2]
[356831115,1743288218175,-100000.0,0.00015,2]
[356831116,1743288226284,-88000.0,0.00015,2]
[356831117,1743288257201,537.033992,0.00014775,2]
[356831118,1743288273776,-8387.65905228,0.0001485,2]
[356831119,1743288273801,-300.0,0.00014999,2]
[356831120,1743288273827,-41312.34094772,0.00015,2]
[356831121,1743288277485,-50000.0,0.00015,2]
[356831122,1743288278108,-50000.0,0.00015,2]
[356831123,1743288278707,-50000.0,0.00015,2]
[356831124,1743288279137,-50000.0,0.00015,2]
[356831125,1743288279619,-50000.0,0.00015,2]
[356831126,1743288280159,-50000.0,0.00015,2]
[356831127,1743288280503,-684.58678865,0.00015,2]
[356831128,1743288280527,-49315.41321135,0.00015,2]
[356831129,1743288281778,-50000.0,0.00015,2]
[356831130,1743288282280,-50000.0,0.00015,2]
[356831131,1743288282812,-50000.0,0.00015,2]
[356831132,1743288283319,-50000.0,0.00015,2]
[356831133,1743288283897,-50000.0,0.00015,2]
[356831134,1743288284404,-50000.0,0.00015,2]
[356831135,1743288290886,-12500.0,0.00015,2]
[356831138,1743288365347,-158.07644563,0.00014925,2]
[356831139,1743288365370,-150.0,0.00014999,2]
[356831140,1743288365392,-169991.92355437,0.00015,2]
[356831141,1743288427685,187.528197,7.945e-05,2]
[356831204,1743288631915,-288.776,0.00015,2]
[356831205,1743288632025,-226.97961713,0.00015,2]
[356831206,1743288632036,-98348.67353042,0.00015,2]
[356831253,1743288637643,-615.0,0.00015,2]
[356831254,1743288637684,-66.82467856,0.00015,2]
[356831255,1743288637707,-91.71892619,0.00015,2]
[356831295,1743288639934,-47.85027991,0.00015,2]
[356831298,1743288639946,-11171.10483329,0.00015,2]
[356831300,1743288639956,-150.0,0.000155,2]
[356831302,1743288639967,-500.0,0.00016055,2]
[356831304,1743288639977,-643.0,0.0001613,2]
[356831306,1743288639987,-1282.0,0.0001613,2]
[356831308,1743288639996,-2039.0,0.0001613,2]
[356831310,1743288640006,-1422.0,0.0001613,2]
[356831311,1743288640016,-1432.0,0.0001613,2]
[356831312,1743288640025,-415.86629484,0.0001613,2]
[356831313,1743288640107,-131.17173858,0.0001613,2]
[356831322,1743288640217,-144.29630148,0.0001613,2]
[356831323,1743288640229,-1256.7743043,0.0001613,2]
[356831324,1743288640241,-565.0456957,0.0001613,2]
[356831340,1743288645742,-165.4076374,0.0001613,2]
[356831341,1743288645977,-96.59410759,0.0001613,2]
[356831519,1743289831751,-150.0,0.000153,2]
[356831520,1743289831761,-503.0,0.00015808,2]
[356831521,1743289831770,-219.95617831,0.00016043,2]
[356831522,1743289831780,-382.0541,0.00016049,2]
[356831523,1743289831790,-500.0,0.00016137,2]
[356831524,1743289831799,-161.0458,0.00016143,2]
[356831525,1743289831809,-1282.0,0.00016243,2]
[356831526,1743289831818,-2033.0,0.00016243,2]
[356831527,1743289831828,-1011.227,0.00016243,2]
[356831528,1743289831837,-1394.0,0.00016243,2]
[356831529,1743289831846,-903.0,0.00016243,2]
[356831530,1743289831856,-543.0,0.00016243,2]
[356831531,1743289831865,-115.8604528,0.00016243,2]
[356831532,1743289832031,-151.9845472,0.00016243,2]
[356831533,1743289832041,-139.64907902,0.00016243,2]
[356831704,1743289840079,-506.90040719,0.00016243,2]
[356831705,1743289840200,-3299.45051379,0.00016243,2]
[356831706,1743289840211,-151.0,0.00016243,2]
[356831707,1743289840221,-1117.0,0.00016243,2]
[356831708,1743289840231,-209.0,0.00016712,2]
[356831709,1743289840241,-169.18,0.000186,2]
[356831710,1743289840251,-588.9141676,0.00019,2]
[356831711,1743289840261,-1064.814,0.00019243,2]
[356831712,1743289840271,-530.767,0.00019243,2]
[356831713,1743289840281,-3946.0,0.00019243,2]
[356831714,1743289840291,-1117.0,0.00019243,2]
[356831715,1743289840301,-178.8855499,0.00020837,2]
[356831716,1743289840310,-2000.0,0.00021375,2]
[356831717,1743289840320,-8486.5013511,0.00021485,2]
[356831718,1743289840330,-242.221,0.00021488,2]
[356831719,1743289840341,-2984.018479,0.00021525,2]
[356831720,1743289840350,-319.4196617,0.0002154,2]
[356831721,1743289840360,-150.0,0.00021555,2]
[356831722,1743289840370,-3946.0,0.00022243,2]
[356831723,1743289840380,-1117.0,0.00022243,2]
[356831724,1743289840389,-1009.54369994,0.00022886,2]
[356831725,1743289840399,-2500.0,0.0002361,7]
[356831726,1743289840409,-2000.0,0.00023968,5]
[356831727,1743289840419,-1500.0,0.00024173,20]
[356831728,1743289840430,-745.73,0.00024392,2]
[356831729,1743289840440,-150.0,0.00024799,2]
[356831730,1743289840450,-151.232,0.00025,2]
[356831731,1743289840460,-250.0,0.00025,2]
[356831732,1743289840470,-300.0,0.000251,2]
[356831733,1743289840484,-3946.0,0.00025243,2]
[356831734,1743289840495,-1117.0,0.00025243,2]
[356831735,1743289840505,-150.0,0.00025244,7]
[356831736,1743289840514,-23900.0,0.00025279,2]
[356831737,1743289840524,-283.2,0.00025286,2]
[356831738,1743289840533,-200.0,0.000253,2]
[356831739,1743289840543,-20295.3,0.0002554,2]
[356831740,1743289840552,-1000.0,0.00025555,2]
[356831741,1743289840561,-500.0,0.00025693,2]
[356831742,1743289840571,-345.56,0.000258,7]
[356831743,1743289840580,-150.0,0.00025876,2]
[356831744,1743289840592,-3050.13525724,0.00026,2]
[356831745,1743289840604,-150.0,0.00026169,2]
[356831746,1743289840614,-12235.71543873,0.000264,2]
[356831747,1743289840623,-193.29,0.0002652,120]
[356831748,1743289840633,-589.19,0.00026548,2]
[356831749,1743289840643,-2092.28,0.00026576,2]
[356831750,1743289840652,-155.31,0.0002658,2]
[356831751,1743289840662,-1000.0,0.00026606,2]
[356831752,1743289840673,-250.0,0.00026628,2]
[356831753,1743289840682,-745.73,0.00026656,2]
[356831754,1743289840692,-2000.0,0.00026829,5]
[356831755,1743289840702,-154.65,0.00026849,2]
[356831756,1743289840711,-177.22,0.00026849,2]
[356831757,1743289840720,-321.54,0.00026849,2]
[356831758,1743289840729,-250.0,0.00027,2]
[356831759,1743289840739,-993.72075141,0.00027,2]
[356831760,1743289840748,-300.0,0.00027,2]
[356831761,1743289840757,-249.29,0.00027085,2]
[356831762,1743289840767,-300.0,0.000271,2]
[356831763,1743289840776,-3526.09,0.00027123,2]
[356831764,1743289840785,-1985.4112,0.00027297,2]
[356831765,1743289840794,-900.0,0.00027397,2]
[356831766,1743289840804,-900.0,0.00027397,2]
[356831767,1743289840814,-900.0,0.00027397,2]
[356831768,1743289840824,-900.0,0.00027397,2]
[356831769,1743289840834,-900.0,0.00027397,2]
[356831770,1743289840844,-900.0,0.00027397,2]
[356831771,1743289840853,-900.0,0.00027397,2]
[356831772,1743289840862,-900.0,0.00027397,2]
[356831773,1743289840872,-900.0,0.00027397,2]
[356831774,1743289840883,-900.0,0.00027397,2]
[356831775,1743289840893,-496.52,0.00027397,2]
[356831776,1743289840903,-2465.86,0.00027397,2]
[356831777,1743289840913,-172.86,0.00027397,10]
[356831778,1743289840923,-192.98179018,0.000275,2]
[356831779,1743289840933,-3002.2589091,0.000275,2]
[356831780,1743289840943,-150.0,0.00027539,2]
[356831781,1743289840952,-172.7260455,0.00028143,2]
[356831782,1743289840962,-3928.0,0.00028243,2]
[356831783,1743289840972,-1117.0,0.00028243,2]
[356831784,1743289840982,-249.29,0.00028455,2]
[356831785,1743289840997,-1000.0,0.0002875,2]
[356831786,1743289841006,-2465.86,0.00028767,2]
[356831787,1743289841016,-150.0,0.00028909,2]
[356831788,1743289841026,-745.73,0.0002892,2]
[356831789,1743289841036,-350.0,0.00029,2]
[356831790,1743289841046,-3949.0,0.0003,3]
[356831791,1743289841056,-688.0,0.0003,2]
[356831792,1743289841066,-300.0,0.000301,2]
[356831793,1743289841076,-2465.86,0.00030137,2]
[356831794,1743289841086,-200.0,0.00030137,2]
[356831795,1743289841097,-150.0,0.00030279,2]
[356831796,1743289841107,-2000.0,0.00030457,5]
[356831797,1743289841117,-1855.20225593,0.000306,2]
[356831798,1743289841127,-3274.85887638,0.000309,2]
[356831799,1743289841137,-400.0,0.00031,2]
[356831800,1743289841147,-745.73,0.00031184,2]
[356831801,1743289841157,-1117.0,0.00031243,2]
[356831802,1743289841167,-2465.86,0.00031507,2]
[356831803,1743289841177,-150.0,0.00031649,2]
[356831804,1743289841187,-249.03605458,0.00031705,7]
[356831805,1743289841196,-1002.0,0.000318,5]
[356831806,1743289841206,-3466.5325934,0.000319,7]
[356831807,1743289841216,-521.925202,0.00031923,7]
[356831808,1743289841225,-1000.0,0.00031944,2]
[356831809,1743289841235,-1000.0,0.000323,2]
[356831810,1743289841245,-321.54,0.00032646,2]
[356831811,1743289841254,-2000.0,0.00032764,3]
[356831812,1743289841263,-500.0,0.00032778,5]
[356831813,1743289841273,-500.0,0.00032779,5]
[356831814,1743289841283,-400.0,0.0003287,2]
[356831815,1743289841293,-600.0,0.0003287,2]
[356831816,1743289841302,-2465.86,0.00032877,2]
[356831817,1743289841312,-347.4,0.00032899,30]
[356831818,1743289841321,-200.0,0.000329,15]
[356831819,1743289841331,-10000.0,0.00032922,30]
[356831820,1743289841341,-5192.0,0.00032922,30]
[356831821,1743289841350,-6771.43456078,0.00032923,30]
[356831822,1743289841360,-7846.96993181,0.00032923,7]
[356831823,1743289841370,-1603.16551917,0.00032923,2]
[356831824,1743289841379,-11593.09012117,0.00032923,7]
[356831825,1743289841390,-913.45884244,0.00032923,3]
[356831826,1743289841399,-10021.76219263,0.00032923,2]
[356831827,1743289841409,-1022.28167635,0.00032923,2]
[356831828,1743289841418,-208.0,0.00032923,10]
[356831829,1743289841428,-1006.77259032,0.00032923,7]
[356831830,1743289841439,-164.93,0.00032932,120]
[356831831,1743289841448,-525.0,0.00033,5]
[356831832,1743289841458,-287.97,0.00033,14]
[356831833,1743289841468,-450.0,0.00033,2]
[356831834,1743289841477,-156.03748164,0.00033018,2]
[356831835,1743289841487,-193.29,0.0003315,120]
[356831836,1743289841496,-745.73,0.00033448,2]
[356831837,1743289841506,-300.44,0.000335,31]
[356831838,1743289841515,-300.44,0.000335,31]
[356831839,1743289841524,-300.44,0.000335,31]
[356831840,1743289841535,-300.44,0.000335,31]
[356831841,1743289841544,-300.44,0.000335,31]
[356831842,1743289841554,-300.44,0.000335,31]
[356831843,1743289841563,-300.44,0.000335,31]
[356831844,1743289841573,-300.44,0.000335,31]
[356831845,1743289841583,-300.44,0.000335,31]
[356831846,1743289841594,-300.44,0.000335,31]
[356831847,1743289841604,-300.44,0.000335,31]
[356831848,1743289841613,-300.44,0.000335,31]
[356831849,1743289841623,-154.65,0.00034192,2]
[356831850,1743289841634,-1117.0,0.00034243,2]
[356831851,1743289841644,-500.0,0.00034269,5]
[356831852,1743289841654,-160.3519,0.000345,7]
[356831853,1743289841664,-150.0,0.00034548,10]
[356831854,1743289841675,-500.0,0.00035,2]
[356831855,1743289841686,-2000.0,0.00035067,5]
[356831856,1743289841696,-1294.0,0.000351,2]
[356831857,1743289841706,-1000.0,0.000351,2]
[356831858,1743289841716,-1000.0,0.00035139,2]
[356831859,1743289841725,-150.0,0.00035616,2]
[356831860,1743289841735,-745.73,0.00035712,2]
[356831861,1743289841745,-172.72604549,0.00035729,2]
[356831862,1743289841754,-283.2,0.00036519,2]
[356831863,1743289841764,-150.0,0.00036554,2]
[356831864,1743289841774,-300.44,0.000369,31]
[356831865,1743289841783,-300.44,0.000369,31]
[356831866,1743289841794,-300.44,0.000369,31]
[356831867,1743289841804,-300.44,0.000369,31]
[356831868,1743289841813,-300.44,0.000369,31]
[356831869,1743289841823,-300.44,0.000369,31]
[356831870,1743289841832,-300.44,0.000369,31]
[356831871,1743289841841,-300.44,0.000369,31]
[356831872,1743289841851,-300.44,0.000369,31]
[356831873,1743289841861,-300.44,0.000369,31]
[356831874,1743289841870,-300.44,0.000369,31]
[356831875,1743289841880,-300.44,0.000369,31]
[356831876,1743289841890,-300.44,0.000369,31]
[356831877,1743289841900,-300.44,0.000369,31]
[356831878,1743289841910,-300.44,0.000369,31]
[356831879,1743289841919,-300.44,0.000369,31]
[356831880,1743289841930,-300.44,0.000369,31]
[356831881,1743289842138,-300.44,0.000369,31]
[356831882,1743289842155,-300.44,0.000369,31]
[356831883,1743289842168,-300.44,0.000369,31]
[356831884,1743289842179,-300.44,0.000369,31]
[356831885,1743289842190,-300.44,0.000369,31]
[356831886,1743289842200,-300.44,0.000369,31]
[356831887,1743289842211,-300.44,0.000369,31]
[356831888,1743289842221,-550.0,0.00037,2]
[356831889,1743289842231,-589.19,0.00037168,2]
[356831890,1743289842241,-568.279,0.00037243,2]
[356831891,1743289842252,-204.0,0.0003731,30]
[356831892,1743289842262,-150.0,0.00037491,2]
[356831893,1743289842272,-1294.05467067,0.000378,2]
[356831894,1743289842282,-745.73,0.00037975,2]
[356831895,1743289842292,-11593.03573738,0.00038,3]
[356831896,1743289842302,-1000.0,0.00038333,2]
[356831897,1743289842312,-150.0,0.00038428,2]
[356831898,1743289842322,-321.54,0.00038443,2]
[356831899,1743289842332,-152.0,0.00038528,3]
[356831900,1743289842342,-204.0,0.0003885,30]
[356831901,1743289842352,-1443.1677,0.00038888,30]
[356831902,1743289842361,-500.0,0.0003889,5]
[356831903,1743289842371,-600.0,0.00039,2]
[356831904,1743289842380,-150.0,0.00039366,2]
[356831905,1743289842389,-500.0,0.00039778,5]
[356831906,1743289842399,-193.29,0.0003978,120]
[356831907,1743289842408,-2000.0,0.00039876,31]
[356831908,1743289842418,-500.0,0.00039888,5]
[356831909,1743289842428,-164.93,0.00039969,120]
[356831910,1743289842440,-610.93827175,0.0004,10]
[356831911,1743289842450,-1000.0,0.0004,2]
[356831912,1743289842460,-12619.55062275,0.0004,30]
[356831913,1743289842470,-200.40011239,0.0004,6]
[356831914,1743289842481,-203.22,0.0004,120]
[356831915,1743289842492,-745.73,0.00040239,2]
[356831916,1743289842502,-150.0,0.00040303,2]
[356831917,1743289842512,-204.0,0.000404,30]
[356831918,1743289842522,-300.44,0.000404,31]
[356831919,1743289842532,-300.44,0.000404,31]
[356831920,1743289842542,-300.44,0.000404,31]
[356831922,1743289842552,-300.44,0.000404,31]
[356831924,1743289842563,-300.44,0.000404,31]
[356831925,1743289842573,-300.44,0.000404,31]
[356831926,1743289842583,-300.44,0.000404,31]
[356831927,1743289842595,-300.44,0.000404,31]
[356831928,1743289842605,-300.44,0.000404,31]
[356831929,1743289842621,-300.44,0.000404,31]
[356831930,1743289842631,-300.44,0.000404,31]
[356831931,1743289842642,-300.44,0.000404,31]
[356831932,1743289842652,-300.44,0.000404,31]
[356831933,1743289842662,-300.44,0.000404,31]
[356831934,1743289842673,-300.44,0.000404,31]
[356831935,1743289842683,-300.44,0.000404,31]
[356831936,1743289842693,-300.44,0.000404,31]
[356831937,1743289842703,-300.44,0.000404,31]
[356831938,1743289842714,-300.44,0.000404,31]
[356831939,1743289842725,-300.44,0.000404,31]
[356831940,1743289842735,-300.44,0.000404,31]
[356831941,1743289842745,-300.44,0.000404,31]
[356831942,1743289842756,-300.44,0.000404,31]
[356831943,1743289842766,-300.44,0.000404,31]
[356831944,1743289842776,-152.0,0.00040568,4]
[356831945,1743289842786,-400.0,0.0004057,3]
[356831946,1743289842796,-400.0,0.0004097,3]
[356831947,1743289842806,-504.30710015,0.0004097,3]
[356831948,1743289842817,-400.0,0.0004097,3]
[356831950,1743289842828,-650.0,0.00041,2]
[356831952,1743289842838,-154.0,0.00041,14]
[356831953,1743289842849,-500.0,0.00041111,5]
[356831954,1743289842859,-208.0,0.0004122,2]
[356831955,1743289842869,-150.0,0.0004124,2]
[356831956,1743289842879,-500.0,0.00041469,30]
[356831957,1743289842889,-168.18529824,0.00041476,30]
[356831958,1743289842899,-154.65,0.00041534,2]
[356831959,1743289842909,-500.0,0.00041546,30]
[356831960,1743289842918,-500.0,0.00041563,30]
[356831961,1743289842928,-500.0,0.00041597,30]
[356831962,1743289842937,-500.0,0.00041889,5]
[356831963,1743289842947,-1143.35472269,0.000419,14]
[356831964,1743289842956,-204.0,0.0004194,30]
[356831965,1743289842966,-25023.32023834,0.0004199,3]
[356832045,1743289844470,-2256.45416556,0.0004199,3]